[Event "*** Titled Tuesday Blitz"]
[Site "Chess.com"]
[Date "2020.12.01"]
[Round "5"]
[White "HajduIstvanCM"]
[Black "Sueetin"]
[Result "0-1"]
[WhiteElo "1758"]
[BlackElo "2259"]
[TimeControl "180+1"]
[EndTime "10:55:17 PST"]
[Termination "Sueetin won by checkmate"]

1. e4 {[%clk 0:03:00.9]} 1... c5 {[%clk 0:02:56.5]} 2. Nf3 {[%clk 0:02:59.8]}
2... e6 {[%clk 0:02:54.9]} 3. c4 {[%clk 0:02:58.4]} 3... Nc6 {[%clk 0:02:50.5]}
4. Nc3 {[%clk 0:02:54.6]} 4... Nge7 {[%clk 0:02:38.4]} 5. d4 {[%clk 0:02:49.3]}
5... cxd4 {[%clk 0:02:38.1]} 6. Nxd4 {[%clk 0:02:47.8]} 6... Nxd4 {[%clk
0:02:38.1]} 7. Qxd4 {[%clk 0:02:46.1]} 7... Nc6 {[%clk 0:02:38.6]} 8. Qd1 {[%clk
0:02:35.5]} 8... Bb4 {[%clk 0:02:37.3]} 9. Bd2 {[%clk 0:02:32.3]} 9... O-O
{[%clk 0:02:35.1]} 10. Be2 {[%clk 0:02:28.4]} 10... Nd4 {[%clk 0:02:09.4]} 11.
O-O {[%clk 0:02:17.7]} 11... d6 {[%clk 0:01:47.8]} 12. a3 {[%clk 0:02:00.9]}
12... Bc5 {[%clk 0:01:25.7]} 13. b4 {[%clk 0:01:54.2]} 13... Nxe2+ {[%clk
0:01:11.6]} 14. Nxe2 {[%clk 0:01:43.9]} 14... Bb6 {[%clk 0:01:09.9]} 15. Bc3
{[%clk 0:01:36.2]} 15... e5 {[%clk 0:00:53.4]} 16. Rc1 {[%clk 0:01:22]} 16...
Be6 {[%clk 0:00:52.4]} 17. Bb2 {[%clk 0:01:15.1]} 17... Rc8 {[%clk 0:00:50.7]}
18. Qd3 {[%clk 0:00:59.4]} 18... f5 {[%clk 0:00:45.4]} 19. c5 {[%clk 0:00:52.3]}
19... dxc5 {[%clk 0:00:34.5]} 20. Qxd8 {[%clk 0:00:50.5]} 20... Rfxd8 {[%clk
0:00:31.8]} 21. exf5 {[%clk 0:00:45.7]} 21... Bxf5 {[%clk 0:00:28.2]} 22. bxc5
{[%clk 0:00:37.8]} 22... Bxc5 {[%clk 0:00:19.2]} 23. Bxe5 {[%clk 0:00:36.7]}
23... Bd3 {[%clk 0:00:18.4]} 24. Rfe1 {[%clk 0:00:31.2]} 24... Bxe2 {[%clk
0:00:16.3]} 25. Rxe2 {[%clk 0:00:29.6]} 25... Bxf2+ {[%clk 0:00:16.3]} 26. Kxf2
{[%clk 0:00:25.6]} 26... Rxc1 {[%clk 0:00:15.7]} 27. Rb2 {[%clk 0:00:21]} 27...
b6 {[%clk 0:00:12.9]} 28. g3 {[%clk 0:00:15.1]} 28... Rdc8 {[%clk 0:00:10.4]}
29. g4 {[%clk 0:00:11.8]} 29... R1c2+ {[%clk 0:00:10.3]} 30. Rxc2 {[%clk
0:00:11.5]} 30... Rxc2+ {[%clk 0:00:11.2]} 31. Ke1 {[%clk 0:00:09.6]} 31... Ra2
{[%clk 0:00:09.7]} 32. Bd6 {[%clk 0:00:08]} 32... Kf7 {[%clk 0:00:09.7]} 33. Kd1
{[%clk 0:00:06.8]} 33... Ke6 {[%clk 0:00:09.8]} 34. Bf8 {[%clk 0:00:06.4]} 34...
g6 {[%clk 0:00:09.7]} 35. h4 {[%clk 0:00:06]} 35... Rg2 {[%clk 0:00:08.1]} 36.
g5 {[%clk 0:00:04.9]} 36... Rh2 {[%clk 0:00:08.2]} 37. Bb4 {[%clk 0:00:02.8]}
37... Rxh4 {[%clk 0:00:07.7]} 38. Bc3 {[%clk 0:00:01.3]} 38... Rh2 {[%clk
0:00:06.4]} 39. Bf6 {[%clk 0:00:01.6]} 39... h5 {[%clk 0:00:05]} 40. Kc1 {[%clk
0:00:02.5]} 40... h4 {[%clk 0:00:04.9]} 41. Kb1 {[%clk 0:00:03.4]} 41... h3
{[%clk 0:00:05.1]} 42. Ka1 {[%clk 0:00:04.3]} 42... Rg2 {[%clk 0:00:05.3]} 43.
Bd4 {[%clk 0:00:03.9]} 43... h2 {[%clk 0:00:05.1]} 44. Be5 {[%clk 0:00:03]}
44... Kxe5 {[%clk 0:00:04.2]} 45. a4 {[%clk 0:00:02.7]} 45... h1=Q# {[%clk
0:00:04]} 0-1

[Event "*** Titled Tuesday Blitz"]
[Site "Chess.com"]
[Date "2020.12.01"]
[Round "5"]
[White "bancsoo"]
[Black "ftorodent"]
[Result "0-1"]
[WhiteElo "2873"]
[BlackElo "2634"]
[TimeControl "180+1"]
[EndTime "10:55:21 PST"]
[Termination "ftorodent won by resignation"]

1. d4 {[%clk 0:03:00.9]} 1... d5 {[%clk 0:02:59.5]} 2. Nf3 {[%clk 0:03:00.9]}
2... Nf6 {[%clk 0:02:58.8]} 3. g3 {[%clk 0:03:01.2]} 3... c6 {[%clk 0:02:56]} 4.
Bg2 {[%clk 0:03:01.2]} 4... Bg4 {[%clk 0:02:55.9]} 5. O-O {[%clk 0:03:00.4]}
5... Nbd7 {[%clk 0:02:55.9]} 6. h3 {[%clk 0:03:00.7]} 6... Bh5 {[%clk
0:02:56.1]} 7. c4 {[%clk 0:03:00.4]} 7... e6 {[%clk 0:02:55.9]} 8. cxd5 {[%clk
0:03:00.4]} 8... exd5 {[%clk 0:02:55.3]} 9. Nh4 {[%clk 0:03:00.7]} 9... Be7
{[%clk 0:02:44.8]} 10. Nc3 {[%clk 0:03:00.2]} 10... O-O {[%clk 0:02:43.8]} 11.
f4 {[%clk 0:02:50.8]} 11... Ne4 {[%clk 0:02:30.5]} 12. Nf5 {[%clk 0:02:47.1]}
12... Nxc3 {[%clk 0:01:44.7]} 13. bxc3 {[%clk 0:02:48]} 13... f6 {[%clk
0:01:44.3]} 14. g4 {[%clk 0:02:33.9]} 14... Bg6 {[%clk 0:01:42.3]} 15. Nxe7+
{[%clk 0:02:31.4]} 15... Qxe7 {[%clk 0:01:42.4]} 16. f5 {[%clk 0:02:32]} 16...
Bf7 {[%clk 0:01:42.3]} 17. Bf4 {[%clk 0:02:32]} 17... Rfe8 {[%clk 0:01:40.8]}
18. e3 {[%clk 0:02:31.7]} 18... Nb6 {[%clk 0:01:40.8]} 19. Qc2 {[%clk
0:01:40.4]} 19... Nc4 {[%clk 0:01:39.4]} 20. Rae1 {[%clk 0:01:40.9]} 20... Nd6
{[%clk 0:01:39.5]} 21. Bf3 {[%clk 0:01:34]} 21... Ne4 {[%clk 0:01:38.1]} 22. h4
{[%clk 0:01:32.3]} 22... Qa3 {[%clk 0:01:37.4]} 23. c4 {[%clk 0:01:22.8]} 23...
Rac8 {[%clk 0:01:22.7]} 24. g5 {[%clk 0:01:20.6]} 24... c5 {[%clk 0:01:15.9]}
25. Bxe4 {[%clk 0:01:06.8]} 25... Rxe4 {[%clk 0:01:12.8]} 26. gxf6 {[%clk
0:01:01.6]} 26... gxf6 {[%clk 0:01:10.2]} 27. cxd5 {[%clk 0:00:59.1]} 27... Bxd5
{[%clk 0:01:08.9]} 28. Kh2 {[%clk 0:00:58.8]} 28... Qxa2 {[%clk 0:00:58.5]} 29.
Qxa2 {[%clk 0:00:56.1]} 29... Bxa2 {[%clk 0:00:57.8]} 30. Ra1 {[%clk 0:00:50.1]}
30... Bd5 {[%clk 0:00:57.4]} 31. dxc5 {[%clk 0:00:48.5]} 31... Rxc5 {[%clk
0:00:48.2]} 32. Rxa7 {[%clk 0:00:44.7]} 32... Rc2+ {[%clk 0:00:48.1]} 33. Kh3
{[%clk 0:00:43]} 33... Rb4 {[%clk 0:00:31.6]} 34. Rg1+ {[%clk 0:00:36.2]} 34...
Kf7 {[%clk 0:00:31.8]} 35. Ra8 {[%clk 0:00:35.7]} 35... Be4 {[%clk 0:00:25.9]}
36. Rgg8 {[%clk 0:00:29.3]} 36... Bxf5+ {[%clk 0:00:24.5]} 37. Kg3 {[%clk
0:00:29.9]} 37... Rbb2 {[%clk 0:00:21.2]} 38. Raf8+ {[%clk 0:00:26.4]} 38... Ke7
{[%clk 0:00:21.1]} 39. Re8+ {[%clk 0:00:26.5]} 39... Kd7 {[%clk 0:00:21.1]} 40.
Rd8+ {[%clk 0:00:25.4]} 40... Kc6 {[%clk 0:00:20.3]} 41. Rd6+ {[%clk 0:00:25]}
41... Kb5 {[%clk 0:00:19.2]} 42. Rd5+ {[%clk 0:00:24.7]} 42... Rc5 {[%clk
0:00:19.4]} 43. Rxc5+ {[%clk 0:00:24.8]} 43... Kxc5 {[%clk 0:00:19.7]} 44. Rf8
{[%clk 0:00:25.5]} 44... Be4 {[%clk 0:00:17.8]} 45. Rxf6 {[%clk 0:00:25.9]}
45... b5 {[%clk 0:00:18]} 46. Be5 {[%clk 0:00:23.4]} 46... Rg2+ {[%clk
0:00:17.1]} 47. Kf4 {[%clk 0:00:22.2]} 47... Bc6 {[%clk 0:00:17]} 48. Bd4+
{[%clk 0:00:20.9]} 48... Kd5 {[%clk 0:00:16.1]} 49. Rf5+ {[%clk 0:00:21.3]}
49... Kd6 {[%clk 0:00:16.2]} 50. Rh5 {[%clk 0:00:21.1]} 50... Rf2+ {[%clk
0:00:15]} 51. Kg3 {[%clk 0:00:19.8]} 51... Rf3+ {[%clk 0:00:13.9]} 52. Kg4
{[%clk 0:00:20]} 52... Rf7 {[%clk 0:00:14.3]} 53. Rh6+ {[%clk 0:00:20.2]} 53...
Kd5 {[%clk 0:00:14.6]} 54. Rh5+ {[%clk 0:00:20.7]} 54... Kd6 {[%clk 0:00:14.3]}
55. Bc3 {[%clk 0:00:17.4]} 55... Bf3+ {[%clk 0:00:13.1]} 0-1

[Event "*** Titled Tuesday Blitz"]
[Site "Chess.com"]
[Date "2020.12.01"]
[Round "5"]
[White "yourstrulyme"]
[Black "leoduarte"]
[Result "1/2-1/2"]
[WhiteElo "2481"]
[BlackElo "2323"]
[TimeControl "180+1"]
[EndTime "10:55:21 PST"]
[Termination "Game drawn by repetition"]

1. e4 {[%clk 0:03:00.9]} 1... c5 {[%clk 0:02:58.4]} 2. Nf3 {[%clk 0:03:00.7]}
2... e6 {[%clk 0:02:57.9]} 3. d4 {[%clk 0:02:57.1]} 3... cxd4 {[%clk 0:02:58.8]}
4. Nxd4 {[%clk 0:02:56.9]} 4... Nc6 {[%clk 0:02:58.6]} 5. Nc3 {[%clk 0:02:48.9]}
5... Qc7 {[%clk 0:02:56.2]} 6. Qd3 {[%clk 0:02:48.5]} 6... a6 {[%clk 0:02:48.5]}
7. Nxc6 {[%clk 0:02:47.6]} 7... bxc6 {[%clk 0:02:27.5]} 8. Qg3 {[%clk
0:02:46.5]} 8... Qxg3 {[%clk 0:02:27.1]} 9. hxg3 {[%clk 0:02:47.4]} 9... d5
{[%clk 0:02:27.6]} 10. Na4 {[%clk 0:02:45.3]} 10... Nf6 {[%clk 0:02:19.8]} 11.
Nb6 {[%clk 0:02:35.3]} 11... Rb8 {[%clk 0:02:05.8]} 12. Nxc8 {[%clk 0:02:35.2]}
12... Rxc8 {[%clk 0:02:06.2]} 13. Bxa6 {[%clk 0:02:35.6]} 13... Rc7 {[%clk
0:01:56.1]} 14. exd5 {[%clk 0:02:20]} 14... cxd5 {[%clk 0:01:44.1]} 15. c3
{[%clk 0:02:19.8]} 15... Bd6 {[%clk 0:01:41.7]} 16. Be3 {[%clk 0:02:10.4]} 16...
h6 {[%clk 0:01:35.1]} 17. a4 {[%clk 0:02:08.8]} 17... Ke7 {[%clk 0:01:34.5]} 18.
a5 {[%clk 0:02:00.4]} 18... Rb8 {[%clk 0:01:07.5]} 19. Bb6 {[%clk 0:01:57.9]}
19... Rc6 {[%clk 0:01:01.6]} 20. Bb5 {[%clk 0:01:57.3]} 20... Rcxb6 {[%clk
0:01:01.7]} 21. axb6 {[%clk 0:01:57.7]} 21... Rxb6 {[%clk 0:01:02.6]} 22. Ra7+
{[%clk 0:01:37.7]} 22... Kf8 {[%clk 0:01:02.3]} 23. Ra8+ {[%clk 0:01:33.3]}
23... Ke7 {[%clk 0:00:49.7]} 24. Ra7+ {[%clk 0:01:32.7]} 24... Kf8 {[%clk
0:00:49.4]} 25. Ra5 {[%clk 0:01:33.1]} 25... Bc7 {[%clk 0:00:48.7]} 26. b3
{[%clk 0:00:39.5]} 26... Rb8 {[%clk 0:00:39.5]} 27. Ra7 {[%clk 0:00:38.9]} 27...
Bb6 {[%clk 0:00:39.7]} 28. Ra6 {[%clk 0:00:35.8]} 28... Bxf2+ {[%clk 0:00:39.7]}
29. Kxf2 {[%clk 0:00:34.8]} 29... Rxb5 {[%clk 0:00:40.3]} 30. Ra8+ {[%clk
0:00:22.3]} 30... Ke7 {[%clk 0:00:39]} 31. Ra7+ {[%clk 0:00:22.5]} 31... Kd6
{[%clk 0:00:39.2]} 32. Rxf7 {[%clk 0:00:13.9]} 32... Rxb3 {[%clk 0:00:25.4]} 33.
Rxg7 {[%clk 0:00:14]} 33... h5 {[%clk 0:00:22.5]} 34. Rg6 {[%clk 0:00:13]} 34...
Ke5 {[%clk 0:00:17.8]} 35. Re1+ {[%clk 0:00:11.1]} 35... Ne4+ {[%clk 0:00:17.9]}
36. Kg1 {[%clk 0:00:09.8]} 36... Rxc3 {[%clk 0:00:16.8]} 37. Rg5+ {[%clk
0:00:09.9]} 37... Kd6 {[%clk 0:00:15.1]} 38. Rxh5 {[%clk 0:00:10.2]} 38... Rxg3
{[%clk 0:00:13.1]} 39. Rh6 {[%clk 0:00:10.6]} 39... Rg5 {[%clk 0:00:09.1]} 40.
Kh2 {[%clk 0:00:10.3]} 40... Ke5 {[%clk 0:00:04.7]} 41. Kh3 {[%clk 0:00:10.2]}
41... Rg3+ {[%clk 0:00:03.7]} 42. Kh2 {[%clk 0:00:09.3]} 42... Rg5 {[%clk
0:00:04.2]} 43. Re2 {[%clk 0:00:08.5]} 43... Kd6 {[%clk 0:00:02.6]} 44. Re1
{[%clk 0:00:07.5]} 44... Ke5 {[%clk 0:00:02.3]} 1/2-1/2

[Event "*** Titled Tuesday Blitz"]
[Site "Chess.com"]
[Date "2020.12.01"]
[Round "5"]
[White "StephenDedalus83"]
[Black "Eliwood44"]
[Result "1-0"]
[WhiteElo "2706"]
[BlackElo "2479"]
[TimeControl "180+1"]
[EndTime "10:55:23 PST"]
[Termination "StephenDedalus83 won by resignation"]

1. e4 {[%clk 0:03:00.9]} 1... e5 {[%clk 0:02:59.2]} 2. Nf3 {[%clk 0:03:00.6]}
2... Nc6 {[%clk 0:02:59.4]} 3. Bb5 {[%clk 0:03:00.5]} 3... a6 {[%clk 0:02:59.4]}
4. Ba4 {[%clk 0:03:00.6]} 4... d6 {[%clk 0:02:59.6]} 5. c3 {[%clk 0:02:59.2]}
5... Bd7 {[%clk 0:02:58.6]} 6. d4 {[%clk 0:02:58.3]} 6... g6 {[%clk 0:02:57.9]}
7. O-O {[%clk 0:02:57.3]} 7... Bg7 {[%clk 0:02:57.9]} 8. Re1 {[%clk 0:02:57.3]}
8... Nf6 {[%clk 0:02:57.6]} 9. Nbd2 {[%clk 0:02:54.1]} 9... O-O {[%clk
0:02:57.3]} 10. Nf1 {[%clk 0:02:53.1]} 10... Nh5 {[%clk 0:02:49.4]} 11. h3
{[%clk 0:02:39.9]} 11... h6 {[%clk 0:02:40.4]} 12. N1h2 {[%clk 0:02:38.1]} 12...
Kh7 {[%clk 0:02:38.9]} 13. Bc2 {[%clk 0:02:33.5]} 13... Qf6 {[%clk 0:02:30.7]}
14. Ng4 {[%clk 0:02:32.1]} 14... Bxg4 {[%clk 0:02:30.1]} 15. hxg4 {[%clk
0:02:31.4]} 15... Nf4 {[%clk 0:02:30.4]} 16. g3 {[%clk 0:02:30.4]} 16... Nh3+
{[%clk 0:02:24.1]} 17. Kg2 {[%clk 0:02:29.9]} 17... Ng5 {[%clk 0:02:07.5]} 18.
d5 {[%clk 0:02:22.3]} 18... Nxf3 {[%clk 0:02:00.8]} 19. Qxf3 {[%clk 0:02:21.4]}
19... Qxf3+ {[%clk 0:02:00.8]} 20. Kxf3 {[%clk 0:02:21.3]} 20... Ne7 {[%clk
0:02:01.1]} 21. Rh1 {[%clk 0:02:21.5]} 21... f6 {[%clk 0:01:54.9]} 22. Rh2
{[%clk 0:02:15.9]} 22... g5 {[%clk 0:01:54.3]} 23. Be3 {[%clk 0:02:13.2]} 23...
Kg6 {[%clk 0:01:53.4]} 24. c4 {[%clk 0:02:11.9]} 24... Rfd8 {[%clk 0:01:42.5]}
25. Rc1 {[%clk 0:02:10.8]} 25... b6 {[%clk 0:01:42.1]} 26. Ba4 {[%clk
0:02:09.4]} 26... Rab8 {[%clk 0:01:34.7]} 27. b4 {[%clk 0:02:06]} 27... b5
{[%clk 0:01:23.7]} 28. cxb5 {[%clk 0:01:56.1]} 28... axb5 {[%clk 0:01:24.6]} 29.
Bb3 {[%clk 0:01:56]} 29... Rdc8 {[%clk 0:01:21.6]} 30. Rhh1 {[%clk 0:01:50]}
30... c6 {[%clk 0:01:21]} 31. dxc6 {[%clk 0:01:49.2]} 31... Rxc6 {[%clk
0:01:21.9]} 32. Be6 {[%clk 0:01:46.6]} 32... Ra8 {[%clk 0:01:03.2]} 33. Rhd1
{[%clk 0:01:45.7]} 33... Rxc1 {[%clk 0:01:02.2]} 34. Rxc1 {[%clk 0:01:43.3]}
34... Ra4 {[%clk 0:00:56.3]} 35. Rc7 {[%clk 0:01:42]} 35... Bf8 {[%clk
0:00:55.3]} 36. Bd2 {[%clk 0:01:40.6]} 36... Ra3+ {[%clk 0:00:54.2]} 37. Ke2
{[%clk 0:01:37.5]} 37... h5 {[%clk 0:00:30.7]} 38. gxh5+ {[%clk 0:01:27.4]}
38... Kxh5 {[%clk 0:00:31.6]} 39. Bc1 {[%clk 0:01:12.3]} 39... Ra4 {[%clk
0:00:26.5]} 40. a3 {[%clk 0:01:12.1]} 40... Kg6 {[%clk 0:00:20.5]} 41. Bb2
{[%clk 0:01:11.2]} 41... Ra8 {[%clk 0:00:15.4]} 42. Bd7 {[%clk 0:01:09]} 42...
Rb8 {[%clk 0:00:14.4]} 43. Be6 {[%clk 0:01:08.5]} 43... f5 {[%clk 0:00:13.8]}
44. exf5+ {[%clk 0:01:07.7]} 44... Nxf5 {[%clk 0:00:14.7]} 45. Kd3 {[%clk
0:01:07.6]} 45... Ne7 {[%clk 0:00:11.8]} 46. Ke4 {[%clk 0:01:04.2]} 46... Kf6
{[%clk 0:00:11.9]} 47. Bb3 {[%clk 0:01:02.8]} 47... Rc8 {[%clk 0:00:11.8]} 48.
Rxc8 {[%clk 0:01:00.6]} 48... Nxc8 {[%clk 0:00:12.7]} 49. f4 {[%clk 0:01:00.3]}
49... gxf4 {[%clk 0:00:11.4]} 50. gxf4 {[%clk 0:01:00.2]} 50... Ke7 {[%clk
0:00:11.5]} 51. f5 {[%clk 0:00:56.9]} 51... Kd7 {[%clk 0:00:10.1]} 52. f6 {[%clk
0:00:55.5]} 52... Kc7 {[%clk 0:00:09]} 53. Kf5 {[%clk 0:00:53.2]} 53... Nb6
{[%clk 0:00:08.7]} 54. Bc1 {[%clk 0:00:51.1]} 54... d5 {[%clk 0:00:08.5]} 55.
Kxe5 {[%clk 0:00:49.4]} 55... Nd7+ {[%clk 0:00:08.3]} 56. Ke6 {[%clk 0:00:49.1]}
56... d4 {[%clk 0:00:07.3]} 57. Bf4+ {[%clk 0:00:48.1]} 57... Kd8 {[%clk
0:00:07.7]} 58. Bc2 {[%clk 0:00:46.2]} 58... Nb6 {[%clk 0:00:07.4]} 59. f7
{[%clk 0:00:41.6]} 59... Nc4 {[%clk 0:00:07.1]} 60. Bg5+ {[%clk 0:00:41.5]}
60... Kc7 {[%clk 0:00:05.8]} 61. Be7 {[%clk 0:00:41.3]} 61... Bxe7 {[%clk
0:00:04.4]} 62. Kxe7 {[%clk 0:00:40.3]} 62... Ne5 {[%clk 0:00:04.9]} 63. f8=Q
{[%clk 0:00:39.4]} 63... Ng6+ {[%clk 0:00:05.1]} 64. Bxg6 {[%clk 0:00:39.3]} 1-0

[Event "*** Titled Tuesday Blitz"]
[Site "Chess.com"]
[Date "2020.12.01"]
[Round "5"]
[White "esskeettit"]
[Black "venus02"]
[Result "1-0"]
[WhiteElo "2453"]
[BlackElo "2487"]
[TimeControl "180+1"]
[EndTime "10:55:23 PST"]
[Termination "esskeettit won by resignation"]

1. d4 {[%clk 0:03:00.9]} 1... Nf6 {[%clk 0:02:55.6]} 2. c4 {[%clk 0:02:59.2]}
2... e6 {[%clk 0:02:55.1]} 3. Nc3 {[%clk 0:02:58.4]} 3... Bb4 {[%clk 0:02:55.1]}
4. e3 {[%clk 0:02:57.9]} 4... O-O {[%clk 0:02:55.1]} 5. Bd3 {[%clk 0:02:58]}
5... d5 {[%clk 0:02:53.3]} 6. Ne2 {[%clk 0:02:58.6]} 6... b6 {[%clk 0:02:51]} 7.
cxd5 {[%clk 0:02:58.6]} 7... exd5 {[%clk 0:02:50.5]} 8. O-O {[%clk 0:02:57]}
8... Bb7 {[%clk 0:02:41.6]} 9. a3 {[%clk 0:02:43.2]} 9... Be7 {[%clk 0:02:41.3]}
10. Ng3 {[%clk 0:02:39.8]} 10... c5 {[%clk 0:02:40.5]} 11. Nf5 {[%clk
0:02:33.6]} 11... Nc6 {[%clk 0:02:39.3]} 12. Nxe7+ {[%clk 0:02:33.4]} 12... Qxe7
{[%clk 0:02:38.5]} 13. Bc2 {[%clk 0:02:18.8]} 13... a5 {[%clk 0:02:33]} 14. dxc5
{[%clk 0:02:05.3]} 14... bxc5 {[%clk 0:02:31.9]} 15. b3 {[%clk 0:01:52.5]} 15...
d4 {[%clk 0:02:29.1]} 16. exd4 {[%clk 0:01:50.3]} 16... Nxd4 {[%clk 0:02:28.2]}
17. Bb2 {[%clk 0:01:12]} 17... Rad8 {[%clk 0:02:25]} 18. Qc1 {[%clk 0:00:57.4]}
18... Rfe8 {[%clk 0:02:18.9]} 19. Bd1 {[%clk 0:00:35.7]} 19... Qe5 {[%clk
0:02:12.8]} 20. Na4 {[%clk 0:00:27]} 20... Rc8 {[%clk 0:02:03.5]} 21. Bxd4
{[%clk 0:00:17.4]} 21... cxd4 {[%clk 0:02:02.2]} 22. Qd2 {[%clk 0:00:17.2]}
22... Ne4 {[%clk 0:01:53.2]} 23. Qd3 {[%clk 0:00:16.8]} 23... Nc3 {[%clk
0:01:53.3]} 24. Nxc3 {[%clk 0:00:15.8]} 24... Rxc3 {[%clk 0:01:52.7]} 25. Qd2
{[%clk 0:00:15.8]} 25... Ba6 {[%clk 0:01:52.2]} 26. Bf3 {[%clk 0:00:13.4]} 26...
Bxf1 {[%clk 0:01:51.5]} 27. Rxf1 {[%clk 0:00:14.3]} 27... Qc5 {[%clk 0:01:41.8]}
28. h3 {[%clk 0:00:13.7]} 28... h6 {[%clk 0:01:39.8]} 29. Rd1 {[%clk 0:00:09.9]}
29... d3 {[%clk 0:01:38.4]} 30. Qf4 {[%clk 0:00:08.8]} 30... Rc2 {[%clk
0:01:35.8]} 31. Rxd3 {[%clk 0:00:07.6]} 31... Qxf2+ {[%clk 0:01:34.6]} 32. Kh2
{[%clk 0:00:08]} 32... Qf1 {[%clk 0:01:18.2]} 33. Rd2 {[%clk 0:00:04.8]} 33...
Rc1 {[%clk 0:01:13.6]} 34. Rd7 {[%clk 0:00:02.8]} 34... Qg1+ {[%clk 0:01:06]}
35. Kg3 {[%clk 0:00:02.7]} 35... Qe1+ {[%clk 0:01:06.2]} 36. Kh2 {[%clk
0:00:03.2]} 36... f6 {[%clk 0:01:01.6]} 37. b4 {[%clk 0:00:03.1]} 37... axb4
{[%clk 0:01:00.9]} 38. axb4 {[%clk 0:00:03.4]} 38... Qg1+ {[%clk 0:00:54.5]} 39.
Kg3 {[%clk 0:00:03.3]} 39... Rf1 {[%clk 0:00:53.6]} 40. Qc4+ {[%clk 0:00:02.5]}
40... Kh8 {[%clk 0:00:52.7]} 41. Qf7 {[%clk 0:00:02.5]} 41... Rxf3+ {[%clk
0:00:43.4]} 42. Kxf3 {[%clk 0:00:03.4]} 42... Qe3+ {[%clk 0:00:41.5]} 43. Kg4
{[%clk 0:00:03.2]} 43... Re4+ {[%clk 0:00:39.2]} 44. Kf5 {[%clk 0:00:03.2]}
44... Qg5+ {[%clk 0:00:39.4]} 45. Kxe4 {[%clk 0:00:03.2]} 45... Qxg2+ {[%clk
0:00:28]} 46. Kd4 {[%clk 0:00:03]} 46... Qd2+ {[%clk 0:00:27.5]} 47. Kc5 {[%clk
0:00:02.9]} 47... Qc1+ {[%clk 0:00:26.9]} 48. Kb5 {[%clk 0:00:03.3]} 48... Qf1+
{[%clk 0:00:26.3]} 49. Qc4 {[%clk 0:00:03.7]} 49... Qf5+ {[%clk 0:00:26.2]} 50.
Kc6 {[%clk 0:00:03.8]} 50... Qf3+ {[%clk 0:00:25]} 51. Kc7 {[%clk 0:00:04.2]}
51... Qf4+ {[%clk 0:00:23.3]} 52. Qxf4 {[%clk 0:00:03.7]} 1-0

[Event "*** Titled Tuesday Blitz"]
[Site "Chess.com"]
[Date "2020.12.01"]
[Round "5"]
[White "Chessdreamer2020"]
[Black "Kislov_Oleg"]
[Result "1-0"]
[WhiteElo "2535"]
[BlackElo "2363"]
[TimeControl "180+1"]
[EndTime "10:55:25 PST"]
[Termination "Chessdreamer2020 won by resignation"]

1. e4 {[%clk 0:02:37.5]} 1... e6 {[%clk 0:02:59.5]} 2. d4 {[%clk 0:02:35.1]}
2... d5 {[%clk 0:02:59.8]} 3. Nd2 {[%clk 0:02:33.9]} 3... Nf6 {[%clk 0:02:59.5]}
4. e5 {[%clk 0:02:32.7]} 4... Nfd7 {[%clk 0:02:59.6]} 5. c3 {[%clk 0:02:33.6]}
5... c5 {[%clk 0:03:00.2]} 6. Bd3 {[%clk 0:02:34.2]} 6... Nc6 {[%clk 0:03:00.3]}
7. Ne2 {[%clk 0:02:34.8]} 7... cxd4 {[%clk 0:03:00.6]} 8. cxd4 {[%clk
0:02:35.4]} 8... f6 {[%clk 0:03:01.2]} 9. Nf4 {[%clk 0:02:34.5]} 9... Nxd4
{[%clk 0:02:59.8]} 10. Qh5+ {[%clk 0:02:33.9]} 10... Ke7 {[%clk 0:02:56.4]} 11.
exf6+ {[%clk 0:02:34.4]} 11... Nxf6 {[%clk 0:02:52.4]} 12. Ng6+ {[%clk
0:02:34.7]} 12... hxg6 {[%clk 0:02:50.8]} 13. Qxh8 {[%clk 0:02:34.7]} 13... Kf7
{[%clk 0:02:47.1]} 14. O-O {[%clk 0:02:35.2]} 14... e5 {[%clk 0:02:45.6]} 15.
Nb3 {[%clk 0:02:35.4]} 15... Nxb3 {[%clk 0:02:03.6]} 16. axb3 {[%clk 0:02:36.3]}
16... Bf5 {[%clk 0:02:04.2]} 17. Bxf5 {[%clk 0:02:34.7]} 17... gxf5 {[%clk
0:02:05.1]} 18. Bg5 {[%clk 0:02:34.8]} 18... Bc5 {[%clk 0:01:56.9]} 19. Qh4
{[%clk 0:02:13.6]} 19... Qh8 {[%clk 0:01:40.1]} 20. Bxf6 {[%clk 0:02:09.1]}
20... gxf6 {[%clk 0:01:38.3]} 21. Qa4 {[%clk 0:01:45.7]} 21... Ke6 {[%clk
0:01:10.4]} 22. Qb5 {[%clk 0:01:33.8]} 22... Bb6 {[%clk 0:01:10.7]} 23. Rad1
{[%clk 0:01:22.9]} 23... Rd8 {[%clk 0:01:10.4]} 24. Rd3 {[%clk 0:01:19.4]} 24...
Qh4 {[%clk 0:01:06.2]} 25. Rg3 {[%clk 0:01:13.1]} 25... Rc8 {[%clk 0:00:59.3]}
26. Rd1 {[%clk 0:00:47.3]} 26... Rd8 {[%clk 0:00:26.8]} 27. Qe2 {[%clk
0:00:29.5]} 27... Rd7 {[%clk 0:00:23.8]} 28. Rh3 {[%clk 0:00:27.7]} 28... Qf4
{[%clk 0:00:23.1]} 29. Rf3 {[%clk 0:00:22.8]} 29... Qe4 {[%clk 0:00:19.2]} 30.
Qd2 {[%clk 0:00:20.5]} 30... Rc7 {[%clk 0:00:17.2]} 31. Rd3 {[%clk 0:00:15.6]}
31... Bd4 {[%clk 0:00:15.3]} 32. Kh1 {[%clk 0:00:12]} 32... Qh4 {[%clk
0:00:12.7]} 33. g3 {[%clk 0:00:07.5]} 33... Qe4+ {[%clk 0:00:11.1]} 34. Kg1
{[%clk 0:00:07.9]} 34... Rg7 {[%clk 0:00:08.5]} 35. Re1 {[%clk 0:00:06.8]} 35...
Bxf2+ {[%clk 0:00:01.9]} 36. Kxf2 {[%clk 0:00:05.8]} 36... Qg4 {[%clk
0:00:02.8]} 37. Rf3 {[%clk 0:00:05.3]} 37... Qh3 {[%clk 0:00:03.1]} 38. Kg1
{[%clk 0:00:04.8]} 38... e4 {[%clk 0:00:03.5]} 39. Rf2 {[%clk 0:00:04.8]} 39...
Kf7 {[%clk 0:00:03.5]} 40. Qf4 {[%clk 0:00:04.7]} 40... Rg4 {[%clk 0:00:03.6]}
41. Qxf5 {[%clk 0:00:04.4]} 41... Rxg3+ {[%clk 0:00:04.2]} 42. hxg3 {[%clk
0:00:04.1]} 42... Qxg3+ {[%clk 0:00:04.8]} 43. Kf1 {[%clk 0:00:04.5]} 43... e3
{[%clk 0:00:04.7]} 44. Qd7+ {[%clk 0:00:03.9]} 44... Kg6 {[%clk 0:00:04.8]} 45.
Qe8+ {[%clk 0:00:04.2]} 45... Kh6 {[%clk 0:00:03.8]} 46. Qh8+ {[%clk 0:00:04.6]}
46... Kg5 {[%clk 0:00:04.1]} 47. Qg8+ {[%clk 0:00:05]} 47... Kh4 {[%clk
0:00:05]} 48. Qxg3+ {[%clk 0:00:05.2]} 48... Kxg3 {[%clk 0:00:05.9]} 49. Rxf6
{[%clk 0:00:05.9]} 1-0